[Event "Titled Tuesday Blitz July 26 Early 2022"]
[White "Derraugh, Geordie"]
[Black "Legenia, Artem"]
[WhiteFideId "2603950"]
[BlackFideId "14136945"]
[WhiteElo "2116"]
[BlackElo "1936"]
[Result "1/2-1/2"]
[Round "11"]
[TimeControl "180+1"]
[Date "2022.07.27"]
[WhiteClock "0:00:03"]
[BlackClock "0:00:03"]

1. e4 {[%clk 0:03:00]}  e6 {[%clk 0:02:58]} 2. d3 {[%clk 0:03:00]}  c5 {[%clk 0:02:47]} 3. Nc3 {[%clk 0:02:57]}  Nc6 {[%clk 0:02:45]} 4. f4 {[%clk 0:02:57]}  d5 {[%clk 0:02:45]} 5. Nf3 {[%clk 0:02:54]}  g6 {[%clk 0:02:43]} 6. g3 {[%clk 0:02:51]}  Bg7 {[%clk 0:02:43]} 7. Bg2 {[%clk 0:02:51]}  Nge7 {[%clk 0:02:44]} 8. O-O {[%clk 0:02:51]}  O-O {[%clk 0:02:42]} 9. Qe2 {[%clk 0:02:50]}  Rb8 {[%clk 0:02:40]} 10. a4 {[%clk 0:02:49]}  b6 {[%clk 0:02:36]} 11. Bd2 {[%clk 0:02:46]}  a6 {[%clk 0:02:18]} 12. Kh1 {[%clk 0:02:38]}  b5 {[%clk 0:02:17]} 13. axb5 {[%clk 0:02:32]}  axb5 {[%clk 0:02:17]} 14. exd5 {[%clk 0:02:08]}  exd5 {[%clk 0:02:08]} 15. Ne5 {[%clk 0:02:08]}  Nxe5 {[%clk 0:02:03]} 16. fxe5 {[%clk 0:02:08]}  Be6 {[%clk 0:01:52]} 17. Bg5 {[%clk 0:02:01]}  b4 {[%clk 0:01:35]} 18. Bxe7 {[%clk 0:01:28]}  Qxe7 {[%clk 0:01:28]} 19. Nxd5 {[%clk 0:01:29]}  Bxd5 {[%clk 0:01:25]} 20. Bxd5 {[%clk 0:01:29]}  Qxe5 {[%clk 0:01:24]} 21. Qxe5 {[%clk 0:01:29]}  Bxe5 {[%clk 0:01:24]} 22. Ra7 {[%clk 0:01:28]}  Bxb2 {[%clk 0:01:19]} 23. Rfxf7 {[%clk 0:01:24]}  Rxf7 {[%clk 0:01:19]} 24. Rxf7 {[%clk 0:01:25]}  Kh8 {[%clk 0:01:19]} 25. Rc7 {[%clk 0:01:06]}  Bd4 {[%clk 0:01:18]} 26. Kg2 {[%clk 0:01:04]}  Re8 {[%clk 0:01:13]} 27. Be4 {[%clk 0:00:55]}  Rf8 {[%clk 0:01:07]} 28. Bf3 {[%clk 0:00:51]}  Rb8 {[%clk 0:01:00]} 29. h4 {[%clk 0:00:49]}  b3 {[%clk 0:01:00]} 30. cxb3 {[%clk 0:00:48]}  Rxb3 {[%clk 0:01:00]} 31. Be4 {[%clk 0:00:48]}  Rb8 {[%clk 0:00:38]} 32. h5 {[%clk 0:00:46]}  gxh5 {[%clk 0:00:36]} 33. Rxh7+ {[%clk 0:00:44]}  Kg8 {[%clk 0:00:37]} 34. Rxh5 {[%clk 0:00:45]}  Kg7 {[%clk 0:00:37]} 35. g4 {[%clk 0:00:40]}  Rh8 {[%clk 0:00:36]} 36. Rd5 {[%clk 0:00:39]}  Rf8 {[%clk 0:00:32]} 37. g5 {[%clk 0:00:36]}  Rf7 {[%clk 0:00:30]} 38. Kg3 {[%clk 0:00:35]}  Ra7 {[%clk 0:00:30]} 39. Kg4 {[%clk 0:00:35]}  Rc7 {[%clk 0:00:30]} 40. Rd6 {[%clk 0:00:33]}  Ra7 {[%clk 0:00:29]} 41. Rg6+ {[%clk 0:00:33]}  Kf7 {[%clk 0:00:29]} 42. Rh6 {[%clk 0:00:33]}  Bg7 {[%clk 0:00:28]} 43. Rc6 {[%clk 0:00:33]}  Bd4 {[%clk 0:00:27]} 44. Kf5 {[%clk 0:00:32]}  Re7 {[%clk 0:00:23]} 45. Bd5+ {[%clk 0:00:27]}  Kg7 {[%clk 0:00:23]} 46. Be6 {[%clk 0:00:26]}  Ra7 {[%clk 0:00:21]} 47. Rc8 {[%clk 0:00:25]}  Rb7 {[%clk 0:00:17]} 48. Rg8+ {[%clk 0:00:24]}  Kh7 {[%clk 0:00:17]} 49. Ra8 {[%clk 0:00:13]}  Rc7 {[%clk 0:00:13]} 50. Ra2 {[%clk 0:00:12]}  Kg7 {[%clk 0:00:12]} 51. Rh2 {[%clk 0:00:06]}  Ra7 {[%clk 0:00:08]} 52. Rh6 {[%clk 0:00:04]}  Rc7 {[%clk 0:00:07]} 53. Rg6+ {[%clk 0:00:04]}  Kh7 {[%clk 0:00:07]} 54. Bg8+ {[%clk 0:00:05]}  Kh8 {[%clk 0:00:06]} 55. Bc4 {[%clk 0:00:05]}  Re7 {[%clk 0:00:05]} 56. Rh6+ {[%clk 0:00:03]}  Kg7 {[%clk 0:00:05]} 57. Rd6 {[%clk 0:00:04]}  Rc7 {[%clk 0:00:04]} 58. g6 {[%clk 0:00:04]}  Re7 {[%clk 0:00:04]} 59. Rd8 {[%clk 0:00:04]}  Re5+ {[%clk 0:00:01]} 60. Kf4 {[%clk 0:00:04]}  Re7 {[%clk 0:00:02]} 61. Rg8+ {[%clk 0:00:04]}  Kh6 {[%clk 0:00:02]} 62. Kf5 {[%clk 0:00:04]}  Re5+ {[%clk 0:00:02]} 63. Kf4 {[%clk 0:00:04]}  Re7 {[%clk 0:00:03]} 64. Kf5 {[%clk 0:00:03]}  Re5+ {[%clk 0:00:03]} 65. Kg4 {[%clk 0:00:04]}  Rg5+ {[%clk 0:00:03]} 66. Kf4 {[%clk 0:00:05]}  Rxg6 {[%clk 0:00:03]} 67. Re8 {[%clk 0:00:04]}  Rd6 {[%clk 0:00:03]} 68. Ke4 {[%clk 0:00:04]}  Rf6 {[%clk 0:00:03]} 69. Bd5 {[%clk 0:00:04]}  Rd6 {[%clk 0:00:03]} 70. Bc4 {[%clk 0:00:04]}  Rb6 {[%clk 0:00:04]} 71. Ra8 {[%clk 0:00:05]}  Rd6 {[%clk 0:00:03]} 72. Ra2 {[%clk 0:00:05]}  Rb6 {[%clk 0:00:03]} 73. Rg2 {[%clk 0:00:06]}  Rd6 {[%clk 0:00:02]} 74. Kf5 {[%clk 0:00:06]}  Rf6+ {[%clk 0:00:02]} 75. Ke4 {[%clk 0:00:06]}  Rd6 {[%clk 0:00:03]} 76. Bf7 {[%clk 0:00:06]}  Rf6 {[%clk 0:00:02]} 77. Bd5 {[%clk 0:00:05]}  Rd6 {[%clk 0:00:02]} 78. Rh2+ {[%clk 0:00:03]}  Kg7 {[%clk 0:00:02]} 79. Rg2+ {[%clk 0:00:04]}  Kh6 {[%clk 0:00:03]} 80. Bf7 {[%clk 0:00:04]}  Rf6 {[%clk 0:00:02]} 81. Bd5 {[%clk 0:00:03]}  Rd6 {[%clk 0:00:03]} 1/2-1/2


[Site "https://www.chess.com"]

[Event "Titled Tuesday Blitz July 26 Early 2022"]
[White "Devaev, Alexander"]
[Black "Mamedov, Edgar"]
[WhiteFideId "4169395"]
[BlackFideId "13739980"]
[WhiteElo "2185"]
[BlackElo "2107"]
[Result "1-0"]
[Round "11"]
[TimeControl "180+1"]
[Date "2022.07.27"]
[WhiteClock "0:00:07"]
[BlackClock "0:00:04"]

1. Nf3 {[%clk 0:02:54]}  Nf6 {[%clk 0:02:58]} 2. c4 {[%clk 0:02:53]}  c6 {[%clk 0:02:56]} 3. e3 {[%clk 0:02:52]}  d5 {[%clk 0:02:57]} 4. b3 {[%clk 0:02:53]}  Bf5 {[%clk 0:02:54]} 5. Bb2 {[%clk 0:02:53]}  e6 {[%clk 0:02:54]} 6. Nh4 {[%clk 0:02:53]}  Bg4 {[%clk 0:02:54]} 7. Qc2 {[%clk 0:02:53]}  Nbd7 {[%clk 0:02:53]} 8. h3 {[%clk 0:02:53]}  Bh5 {[%clk 0:02:52]} 9. g4 {[%clk 0:02:54]}  Ne4 {[%clk 0:02:33]} 10. Nf3 {[%clk 0:02:47]}  Bg6 {[%clk 0:02:33]} 11. d3 {[%clk 0:02:46]}  Nef6 {[%clk 0:02:33]} 12. a3 {[%clk 0:02:37]}  Bd6 {[%clk 0:02:30]} 13. Nh4 {[%clk 0:02:35]}  e5 {[%clk 0:02:26]} 14. Bg2 {[%clk 0:02:26]}  dxc4 {[%clk 0:01:57]} 15. Nxg6 {[%clk 0:02:22]}  hxg6 {[%clk 0:01:53]} 16. Qxc4 {[%clk 0:02:06]}  Nb6 {[%clk 0:01:47]} 17. Qc2 {[%clk 0:02:04]}  Nbd5 {[%clk 0:01:46]} 18. Nd2 {[%clk 0:02:01]}  Qe7 {[%clk 0:01:31]} 19. Nc4 {[%clk 0:01:54]}  Bc7 {[%clk 0:01:31]} 20. b4 {[%clk 0:01:29]}  O-O-O {[%clk 0:01:27]} 21. O-O-O {[%clk 0:01:20]}  Kb8 {[%clk 0:01:23]} 22. Kb1 {[%clk 0:01:21]}  g5 {[%clk 0:01:19]} 23. Rc1 {[%clk 0:01:19]}  Rhe8 {[%clk 0:01:18]} 24. Rhd1 {[%clk 0:01:20]}  g6 {[%clk 0:01:12]} 25. Qb3 {[%clk 0:01:18]}  Nd7 {[%clk 0:01:08]} 26. Rc2 {[%clk 0:01:07]}  f5 {[%clk 0:01:06]} 27. Rdc1 {[%clk 0:01:06]}  N7b6 {[%clk 0:01:03]} 28. Na5 {[%clk 0:01:04]}  Nc8 {[%clk 0:00:44]} 29. Rxc6 {[%clk 0:00:38]}  Bxa5 {[%clk 0:00:43]} 30. R6c5 {[%clk 0:00:39]}  Bxb4 {[%clk 0:00:33]} 31. axb4 {[%clk 0:00:32]}  Ndb6 {[%clk 0:00:25]} 32. Bxe5+ {[%clk 0:00:27]}  Nd6 {[%clk 0:00:25]} 33. d4 {[%clk 0:00:10]}  Ka8 {[%clk 0:00:09]} 34. Ra5 {[%clk 0:00:10]}  Ndc4 {[%clk 0:00:07]} 35. Rxc4 {[%clk 0:00:08]}  Nxc4 {[%clk 0:00:07]} 36. Qxc4 {[%clk 0:00:09]}  Rc8 {[%clk 0:00:05]} 37. Qb5 {[%clk 0:00:08]}  Qe6 {[%clk 0:00:04]} 38. Qxb7# {[%clk 0:00:07]} 1-0


[Site "https://www.chess.com"]

[Event "Titled Tuesday Blitz July 26 Early 2022"]
[White "Fiol, Fabrice"]
[Black "Averjanov, Alexey"]
[WhiteFideId "611670"]
[BlackFideId "14109867"]
[WhiteElo "2391"]
[BlackElo "2639"]
[Result "0-1"]
[Round "11"]
[TimeControl "180+1"]
[Date "2022.07.27"]
[WhiteClock "0:00:01"]
[BlackClock "0:00:40"]

1. e4 {[%clk 0:03:00]}  c6 {[%clk 0:02:57]} 2. Nf3 {[%clk 0:03:00]}  d5 {[%clk 0:02:58]} 3. d3 {[%clk 0:03:00]}  Qc7 {[%clk 0:02:57]} 4. c3 {[%clk 0:02:58]}  dxe4 {[%clk 0:02:55]} 5. dxe4 {[%clk 0:02:58]}  Bg4 {[%clk 0:02:55]} 6. Be2 {[%clk 0:02:57]}  Nd7 {[%clk 0:02:54]} 7. Qc2 {[%clk 0:02:57]}  e5 {[%clk 0:02:54]} 8. h3 {[%clk 0:02:57]}  Bh5 {[%clk 0:02:53]} 9. Be3 {[%clk 0:02:54]}  Bc5 {[%clk 0:02:52]} 10. Bxc5 {[%clk 0:02:52]}  Nxc5 {[%clk 0:02:53]} 11. b4 {[%clk 0:02:52]}  Ne6 {[%clk 0:02:53]} 12. Nbd2 {[%clk 0:02:52]}  Nf4 {[%clk 0:02:53]} 13. g3 {[%clk 0:02:48]}  Nxe2 {[%clk 0:02:49]} 14. Kxe2 {[%clk 0:02:49]}  Nf6 {[%clk 0:02:47]} 15. g4 {[%clk 0:02:40]}  Bg6 {[%clk 0:02:46]} 16. Nh4 {[%clk 0:02:39]}  O-O {[%clk 0:02:44]} 17. Nf5 {[%clk 0:02:33]}  Rad8 {[%clk 0:02:40]} 18. f3 {[%clk 0:02:10]}  Rd7 {[%clk 0:02:39]} 19. Nc4 {[%clk 0:02:08]}  Rfd8 {[%clk 0:02:32]} 20. Rad1 {[%clk 0:02:08]}  Bxf5 {[%clk 0:02:25]} 21. exf5 {[%clk 0:02:07]}  Nd5 {[%clk 0:02:25]} 22. Kf2 {[%clk 0:02:02]}  Nf4 {[%clk 0:02:24]} 23. Rxd7 {[%clk 0:02:01]}  Rxd7 {[%clk 0:02:17]} 24. Rd1 {[%clk 0:01:45]}  Rd5 {[%clk 0:01:45]} 25. h4 {[%clk 0:01:34]}  f6 {[%clk 0:01:31]} 26. Ne3 {[%clk 0:01:27]}  Rd6 {[%clk 0:01:29]} 27. Qb3+ {[%clk 0:01:24]}  Kf8 {[%clk 0:01:29]} 28. g5 {[%clk 0:01:15]}  Qd8 {[%clk 0:01:24]} 29. gxf6 {[%clk 0:01:14]}  gxf6 {[%clk 0:01:23]} 30. Rxd6 {[%clk 0:01:01]}  Qxd6 {[%clk 0:01:24]} 31. Qd1 {[%clk 0:00:43]}  Nd3+ {[%clk 0:01:21]} 32. Ke2 {[%clk 0:00:40]}  Nf4+ {[%clk 0:01:21]} 33. Kf2 {[%clk 0:00:40]}  Qc7 {[%clk 0:01:15]} 34. Nc4 {[%clk 0:00:31]}  Ke7 {[%clk 0:01:13]} 35. Qd2 {[%clk 0:00:23]}  h5 {[%clk 0:01:08]} 36. Qe3 {[%clk 0:00:20]}  b6 {[%clk 0:01:08]} 37. a4 {[%clk 0:00:20]}  Kf7 {[%clk 0:01:04]} 38. a5 {[%clk 0:00:18]}  Qd8 {[%clk 0:00:54]} 39. axb6 {[%clk 0:00:17]}  axb6 {[%clk 0:00:55]} 40. Nxb6 {[%clk 0:00:16]}  Qd1 {[%clk 0:00:55]} 41. Nc4 {[%clk 0:00:10]}  Qh1 {[%clk 0:00:42]} 42. Qa7+ {[%clk 0:00:10]}  Kg8 {[%clk 0:00:42]} 43. Qb8+ {[%clk 0:00:10]}  Kg7 {[%clk 0:00:41]} 44. Qc7+ {[%clk 0:00:05]}  Kh6 {[%clk 0:00:42]} 45. Qf7 {[%clk 0:00:01]}  Qg2+ {[%clk 0:00:40]} 46. Ke3 {[%clk 0:00:01]}  Qe2# {[%clk 0:00:40]} 0-1


[Site "https://www.chess.com"]

[Event "Titled Tuesday Blitz July 26 Early 2022"]
[White "Harsh Suresh"]
[Black "Maksimovic, Bojan"]
[WhiteFideId "45018464"]
[BlackFideId "14408120"]
[WhiteElo "2059"]
[BlackElo "2453"]
[Result "1-0"]
[Round "11"]
[TimeControl "180+1"]
[Date "2022.07.26"]
[WhiteClock "0:00:06"]
[BlackClock "0:00:01"]

1. e4 {[%clk 0:03:00]}  c5 {[%clk 0:02:59]} 2. Nc3 {[%clk 0:03:00]}  e6 {[%clk 0:02:57]} 3. Nge2 {[%clk 0:02:58]}  a6 {[%clk 0:02:54]} 4. g3 {[%clk 0:02:56]}  b5 {[%clk 0:02:52]} 5. a3 {[%clk 0:02:49]}  Bb7 {[%clk 0:02:52]} 6. Bg2 {[%clk 0:02:48]}  d6 {[%clk 0:02:48]} 7. d4 {[%clk 0:02:48]}  cxd4 {[%clk 0:02:47]} 8. Nxd4 {[%clk 0:02:47]}  Nd7 {[%clk 0:02:47]} 9. O-O {[%clk 0:02:47]}  Rb8 {[%clk 0:02:47]} 10. Be3 {[%clk 0:02:44]}  Ngf6 {[%clk 0:02:46]} 11. Qe2 {[%clk 0:02:39]}  Be7 {[%clk 0:02:46]} 12. Rad1 {[%clk 0:02:38]}  O-O {[%clk 0:02:46]} 13. f4 {[%clk 0:02:33]}  Qc7 {[%clk 0:02:43]} 14. f5 {[%clk 0:02:26]}  e5 {[%clk 0:02:27]} 15. Nb3 {[%clk 0:02:26]}  Rbc8 {[%clk 0:02:09]} 16. g4 {[%clk 0:02:16]}  h6 {[%clk 0:02:08]} 17. h3 {[%clk 0:02:05]}  Qb8 {[%clk 0:02:06]} 18. Bf2 {[%clk 0:01:57]}  Rxc3 {[%clk 0:02:01]} 19. bxc3 {[%clk 0:01:56]}  Qa8 {[%clk 0:02:01]} 20. Rfe1 {[%clk 0:01:55]}  Rc8 {[%clk 0:02:00]} 21. Rd3 {[%clk 0:01:54]}  a5 {[%clk 0:01:52]} 22. h4 {[%clk 0:01:36]}  h5 {[%clk 0:01:15]} 23. g5 {[%clk 0:01:31]}  Ng4 {[%clk 0:01:15]} 24. Bf3 {[%clk 0:01:29]}  Nxf2 {[%clk 0:01:15]} 25. Qxf2 {[%clk 0:01:26]}  a4 {[%clk 0:01:14]} 26. Nd2 {[%clk 0:01:21]}  d5 {[%clk 0:01:14]} 27. exd5 {[%clk 0:01:19]}  Bc5 {[%clk 0:01:14]} 28. Ree3 {[%clk 0:01:08]}  Bxe3 {[%clk 0:01:14]} 29. Rxe3 {[%clk 0:00:59]}  Bxd5 {[%clk 0:01:09]} 30. Ne4 {[%clk 0:00:58]}  Bxe4 {[%clk 0:01:06]} 31. Bxe4 {[%clk 0:00:57]}  Qa7 {[%clk 0:01:02]} 32. f6 {[%clk 0:00:28]}  g6 {[%clk 0:00:59]} 33. Bd5 {[%clk 0:00:21]}  Qc5 {[%clk 0:00:45]} 34. Rd3 {[%clk 0:00:20]}  Qc7 {[%clk 0:00:35]} 35. Qf3 {[%clk 0:00:15]}  Nb6 {[%clk 0:00:33]} 36. Ba2 {[%clk 0:00:13]}  Nc4 {[%clk 0:00:30]} 37. Qd5 {[%clk 0:00:11]}  Rf8 {[%clk 0:00:19]} 38. Qxb5 {[%clk 0:00:09]}  Nxa3 {[%clk 0:00:16]} 39. Qxa4 {[%clk 0:00:08]}  Qc5+ {[%clk 0:00:14]} 40. Kg2 {[%clk 0:00:08]}  Nb5 {[%clk 0:00:04]} 41. Rd5 {[%clk 0:00:04]}  Nxc3 {[%clk 0:00:04]} 42. Rxc5 {[%clk 0:00:04]}  Nxa4 {[%clk 0:00:05]} 43. Rxe5 {[%clk 0:00:04]}  Nc3 {[%clk 0:00:05]} 44. Bb3 {[%clk 0:00:05]}  Nb1 {[%clk 0:00:02]} 45. Re7 {[%clk 0:00:04]}  Nd2 {[%clk 0:00:02]} 46. Bd5 {[%clk 0:00:04]}  Nb1 {[%clk 0:00:02]} 47. Kf3 {[%clk 0:00:04]}  Nc3 {[%clk 0:00:03]} 48. Bb3 {[%clk 0:00:04]}  Nb5 {[%clk 0:00:03]} 49. Ke4 {[%clk 0:00:05]}  Nd6+ {[%clk 0:00:03]} 50. Kf4 {[%clk 0:00:05]}  Nf5 {[%clk 0:00:04]} 51. Rb7 {[%clk 0:00:05]}  Nxh4 {[%clk 0:00:05]} 52. c4 {[%clk 0:00:05]}  Nf5 {[%clk 0:00:04]} 53. Rd7 {[%clk 0:00:06]}  h4 {[%clk 0:00:04]} 54. c5 {[%clk 0:00:06]}  h3 {[%clk 0:00:04]} 55. Kf3 {[%clk 0:00:05]}  Nh4+ {[%clk 0:00:01]} 56. Kg3 {[%clk 0:00:06]}  h2 {[%clk 0:00:02]} 57. Kxh2 {[%clk 0:00:05]}  Nf3+ {[%clk 0:00:03]} 58. Kh1 {[%clk 0:00:05]}  Nxg5 {[%clk 0:00:04]} 59. c6 {[%clk 0:00:05]}  Rc8 {[%clk 0:00:03]} 60. c7 {[%clk 0:00:05]}  Kh7 {[%clk 0:00:01]} 61. Bd5 {[%clk 0:00:05]}  Ne6 {[%clk 0:00:02]} 62. Bxe6 {[%clk 0:00:05]}  Kh6 {[%clk 0:00:02]} 63. Rxf7 {[%clk 0:00:05]}  Rh8 {[%clk 0:00:02]} 64. c8=Q {[%clk 0:00:05]}  Rxc8 {[%clk 0:00:01]} 65. Bxc8 {[%clk 0:00:06]} 1-0


[Site "https://www.chess.com"]

[Event "Titled Tuesday Blitz July 26 Early 2022"]
[White "Howell, David W L"]
[Black "Seo, Jung Min"]
[WhiteFideId "410608"]
[BlackFideId "1734687"]
[WhiteElo "2559"]
[BlackElo "2414"]
[Result "1/2-1/2"]
[Round "11"]
[TimeControl "180+1"]
[Date "2022.07.26"]
[WhiteClock "0:00:04"]
[BlackClock "0:00:25"]

1. e4 {[%clk 0:03:00]}  c5 {[%clk 0:02:59]} 2. Nf3 {[%clk 0:02:59]}  d6 {[%clk 0:03:00]} 3. d4 {[%clk 0:02:57]}  cxd4 {[%clk 0:03:00]} 4. Nxd4 {[%clk 0:02:57]}  Nf6 {[%clk 0:03:00]} 5. Nc3 {[%clk 0:02:58]}  a6 {[%clk 0:03:01]} 6. Rg1 {[%clk 0:02:54]}  Nc6 {[%clk 0:02:57]} 7. g4 {[%clk 0:02:32]}  Nxd4 {[%clk 0:02:54]} 8. Qxd4 {[%clk 0:02:33]}  Bxg4 {[%clk 0:02:53]} 9. Rxg4 {[%clk 0:02:28]}  Nxg4 {[%clk 0:02:48]} 10. Qa4+ {[%clk 0:02:28]}  Qd7 {[%clk 0:02:34]} 11. Bb5 {[%clk 0:02:27]}  axb5 {[%clk 0:02:34]} 12. Qxa8+ {[%clk 0:02:26]}  Qd8 {[%clk 0:02:35]} 13. Qxb7 {[%clk 0:02:26]}  e6 {[%clk 0:02:32]} 14. Nxb5 {[%clk 0:02:11]}  Be7 {[%clk 0:02:31]} 15. Nc7+ {[%clk 0:02:11]}  Kf8 {[%clk 0:02:31]} 16. h3 {[%clk 0:01:57]}  Ne5 {[%clk 0:02:24]} 17. Be3 {[%clk 0:01:56]}  Bg5 {[%clk 0:02:18]} 18. f4 {[%clk 0:01:42]}  Nc4 {[%clk 0:02:12]} 19. Bb6 {[%clk 0:01:07]}  Bh4+ {[%clk 0:01:58]} 20. Ke2 {[%clk 0:01:07]}  Nxb6 {[%clk 0:01:58]} 21. Qxb6 {[%clk 0:01:06]}  g6 {[%clk 0:01:58]} 22. Rd1 {[%clk 0:01:03]}  Be7 {[%clk 0:01:44]} 23. c4 {[%clk 0:01:00]}  Kg7 {[%clk 0:01:43]} 24. e5 {[%clk 0:00:53]}  d5 {[%clk 0:01:34]} 25. cxd5 {[%clk 0:00:51]}  exd5 {[%clk 0:01:34]} 26. Rxd5 {[%clk 0:00:48]}  Qc8 {[%clk 0:01:33]} 27. e6 {[%clk 0:00:48]}  Bd8 {[%clk 0:01:28]} 28. Rd7 {[%clk 0:00:46]}  Bxc7 {[%clk 0:01:23]} 29. Rxc7 {[%clk 0:00:38]}  Qa8 {[%clk 0:01:22]} 30. Rxf7+ {[%clk 0:00:23]}  Kh6 {[%clk 0:01:22]} 31. Qb7 {[%clk 0:00:18]}  Qxa2 {[%clk 0:01:18]} 32. f5 {[%clk 0:00:15]}  Qc4+ {[%clk 0:01:15]} 33. Kd2 {[%clk 0:00:13]}  Qd4+ {[%clk 0:01:04]} 34. Kc1 {[%clk 0:00:11]}  Qc4+ {[%clk 0:00:56]} 35. Kb1 {[%clk 0:00:11]}  Qd3+ {[%clk 0:00:54]} 36. Ka2 {[%clk 0:00:10]}  Qc4+ {[%clk 0:00:51]} 37. Ka3 {[%clk 0:00:10]}  Qc5+ {[%clk 0:00:50]} 38. Ka2 {[%clk 0:00:09]}  Qc4+ {[%clk 0:00:50]} 39. Ka3 {[%clk 0:00:08]}  Qc5+ {[%clk 0:00:50]} 40. Kb3 {[%clk 0:00:04]}  Qe3+ {[%clk 0:00:49]} 41. Ka4 {[%clk 0:00:03]}  Qd4+ {[%clk 0:00:47]} 42. b4 {[%clk 0:00:04]}  Qd1+ {[%clk 0:00:38]} 43. Kb5 {[%clk 0:00:03]}  Qd3+ {[%clk 0:00:38]} 44. Kc5 {[%clk 0:00:03]}  Qc3+ {[%clk 0:00:36]} 45. Kb5 {[%clk 0:00:03]}  Qd3+ {[%clk 0:00:36]} 46. Kb6 {[%clk 0:00:04]}  Qd4+ {[%clk 0:00:29]} 47. Ka5 {[%clk 0:00:04]}  Qa1+ {[%clk 0:00:28]} 48. Kb5 {[%clk 0:00:04]}  Qf1+ {[%clk 0:00:28]} 49. Kb6 {[%clk 0:00:03]}  Qf2+ {[%clk 0:00:25]} 50. Kb5 {[%clk 0:00:04]}  Qf1+ {[%clk 0:00:25]} 51. Kb6 {[%clk 0:00:03]}  Qf2+ {[%clk 0:00:25]} 52. Kb5 {[%clk 0:00:04]}  Qf1+ {[%clk 0:00:25]} 1/2-1/2


[Site "https://www.chess.com"]

[Event "Titled Tuesday Blitz July 26 Early 2022"]
[White "Jeet, Jain"]
[Black "Atakhan, Abtin"]
[WhiteFideId "5073022"]
[BlackFideId "22502203"]
[WhiteElo "2055"]
[BlackElo "2087"]
[Result "1-0"]
[Round "11"]
[TimeControl "180+1"]
[Date "2022.07.26"]
[WhiteClock "0:01:11"]
[BlackClock "0:00:28"]

1. b3 {[%clk 0:03:00]}  Nf6 {[%clk 0:02:53]} 2. Bb2 {[%clk 0:03:01]}  e6 {[%clk 0:02:53]} 3. g3 {[%clk 0:03:01]}  g6 {[%clk 0:02:54]} 4. Bg2 {[%clk 0:03:01]}  Bg7 {[%clk 0:02:54]} 5. Nf3 {[%clk 0:03:02]}  O-O {[%clk 0:02:55]} 6. O-O {[%clk 0:03:02]}  d5 {[%clk 0:02:55]} 7. d4 {[%clk 0:03:02]}  b6 {[%clk 0:02:56]} 8. Nbd2 {[%clk 0:03:03]}  Bb7 {[%clk 0:02:56]} 9. c4 {[%clk 0:03:03]}  Nbd7 {[%clk 0:02:56]} 10. Ne5 {[%clk 0:03:03]}  Re8 {[%clk 0:02:52]} 11. Rc1 {[%clk 0:03:03]}  Nxe5 {[%clk 0:02:46]} 12. dxe5 {[%clk 0:03:03]}  Nd7 {[%clk 0:02:47]} 13. cxd5 {[%clk 0:03:00]}  Bxd5 {[%clk 0:02:23]} 14. Bxd5 {[%clk 0:02:54]}  exd5 {[%clk 0:02:24]} 15. f4 {[%clk 0:02:54]}  f6 {[%clk 0:02:16]} 16. Nf3 {[%clk 0:02:48]}  Nc5 {[%clk 0:02:14]} 17. exf6 {[%clk 0:02:46]}  Bxf6 {[%clk 0:02:11]} 18. Bxf6 {[%clk 0:02:46]}  Qxf6 {[%clk 0:02:12]} 19. Qxd5+ {[%clk 0:02:46]}  Kg7 {[%clk 0:02:11]} 20. Ne5 {[%clk 0:02:44]}  Rad8 {[%clk 0:02:10]} 21. Qf3 {[%clk 0:02:43]}  Rd2 {[%clk 0:02:04]} 22. Rfd1 {[%clk 0:02:40]}  Red8 {[%clk 0:01:58]} 23. Rxd2 {[%clk 0:02:35]}  Rxd2 {[%clk 0:01:59]} 24. b4 {[%clk 0:02:36]}  Ne6 {[%clk 0:01:55]} 25. Rc6 {[%clk 0:02:35]}  Qe7 {[%clk 0:01:44]} 26. Qc3 {[%clk 0:02:29]}  Rd1+ {[%clk 0:01:43]} 27. Kf2 {[%clk 0:02:21]}  Kg8 {[%clk 0:01:29]} 28. Ng4 {[%clk 0:02:17]}  Nd4 {[%clk 0:01:26]} 29. Qc4+ {[%clk 0:02:08]}  Kf8 {[%clk 0:01:21]} 30. Rxc7 {[%clk 0:02:07]}  Qe6 {[%clk 0:01:04]} 31. Rc8+ {[%clk 0:02:00]}  Ke7 {[%clk 0:01:03]} 32. Qc7+ {[%clk 0:01:54]}  Qd7 {[%clk 0:01:03]} 33. Qe5+ {[%clk 0:01:53]}  Ne6 {[%clk 0:01:03]} 34. Rc4 {[%clk 0:01:43]}  Qd2 {[%clk 0:00:55]} 35. Ne3 {[%clk 0:01:29]}  Qe1+ {[%clk 0:00:49]} 36. Kf3 {[%clk 0:01:29]}  Qh1+ {[%clk 0:00:46]} 37. Kg4 {[%clk 0:01:30]}  h5+ {[%clk 0:00:44]} 38. Kh3 {[%clk 0:01:26]}  Rd7 {[%clk 0:00:42]} 39. Re4 {[%clk 0:01:18]}  Rd6 {[%clk 0:00:35]} 40. f5 {[%clk 0:01:18]}  g5 {[%clk 0:00:27]} 41. fxe6 {[%clk 0:01:11]}  g4+ {[%clk 0:00:28]} 42. Kh4 {[%clk 0:01:11]} 1-0


[Site "https://www.chess.com"]